[Event "Titled Tuesday Blitz July 18 Late 2023"]
[White "Melnichuk, Mikhail"]
[Black "Cardozo Munar, Carlos Eduardo"]
[WhiteFideId "14117533"]
[BlackFideId "4409477"]
[WhiteElo "2459"]
[BlackElo "2238"]
[Result "1-0"]
[Round "4"]
[TimeControl "180+2"]
[Date "2023.07.18"]
[WhiteClock "0:00:56"]
[BlackClock "0:00:03"]
[Board "168"]

1. Nf3 {[%clk 0:02:57]}  Nf6 {[%clk 0:02:42]} 2. c4 {[%clk 0:02:56]}  c5 {[%clk 0:02:40]} 3. Nc3 {[%clk 0:02:56]}  Nc6 {[%clk 0:02:28]} 4. d4 {[%clk 0:02:56]}  Nxd4 {[%clk 0:02:17]} 5. Nxd4 {[%clk 0:02:57]}  cxd4 {[%clk 0:02:18]} 6. Qxd4 {[%clk 0:02:56]}  a6 {[%clk 0:02:18]} 7. g3 {[%clk 0:02:56]}  e6 {[%clk 0:02:11]} 8. Bg2 {[%clk 0:02:55]}  Qc7 {[%clk 0:02:07]} 9. O-O {[%clk 0:02:54]}  Qc5 {[%clk 0:01:55]} 10. Qd3 {[%clk 0:02:52]}  Be7 {[%clk 0:01:54]} 11. Bf4 {[%clk 0:02:43]}  O-O {[%clk 0:01:53]} 12. Rad1 {[%clk 0:02:40]}  d6 {[%clk 0:01:40]} 13. Bxd6 {[%clk 0:02:18]}  Bxd6 {[%clk 0:01:39]} 14. Qxd6 {[%clk 0:02:18]}  Qxc4 {[%clk 0:01:39]} 15. Rd4 {[%clk 0:02:16]}  Qxd4 {[%clk 0:01:10]} 16. Qxd4 {[%clk 0:02:14]}  Bd7 {[%clk 0:01:06]} 17. Bxb7 {[%clk 0:02:12]}  Rab8 {[%clk 0:01:06]} 18. Bxa6 {[%clk 0:02:10]}  Rxb2 {[%clk 0:01:07]} 19. Ne4 {[%clk 0:02:05]}  Rxa2 {[%clk 0:01:07]} 20. Nxf6+ {[%clk 0:02:03]}  gxf6 {[%clk 0:01:08]} 21. Bc4 {[%clk 0:01:59]}  Ra4 {[%clk 0:01:05]} 22. Qxd7 {[%clk 0:01:38]}  Rxc4 {[%clk 0:00:34]} 23. Rd1 {[%clk 0:01:35]}  Kg7 {[%clk 0:00:33]} 24. Rd4 {[%clk 0:01:33]}  Rxd4 {[%clk 0:00:33]} 25. Qxd4 {[%clk 0:01:32]}  Rc8 {[%clk 0:00:32]} 26. Qg4+ {[%clk 0:01:31]}  Kf8 {[%clk 0:00:31]} 27. Kg2 {[%clk 0:01:29]}  Rc5 {[%clk 0:00:31]} 28. h4 {[%clk 0:01:27]}  Re5 {[%clk 0:00:27]} 29. e3 {[%clk 0:01:25]}  h5 {[%clk 0:00:26]} 30. Qd4 {[%clk 0:01:24]}  Kg7 {[%clk 0:00:25]} 31. Qd1 {[%clk 0:01:22]}  Rd5 {[%clk 0:00:24]} 32. Qe2 {[%clk 0:01:20]}  Re5 {[%clk 0:00:24]} 33. Kf1 {[%clk 0:01:17]}  Rd5 {[%clk 0:00:24]} 34. Qf3 {[%clk 0:01:17]}  Re5 {[%clk 0:00:24]} 35. Ke2 {[%clk 0:01:16]}  Rf5 {[%clk 0:00:25]} 36. Qa8 {[%clk 0:01:15]}  Rd5 {[%clk 0:00:24]} 37. Qa4 {[%clk 0:01:12]}  Re5 {[%clk 0:00:24]} 38. g4 {[%clk 0:01:12]}  hxg4 {[%clk 0:00:25]} 39. Qxg4+ {[%clk 0:01:12]}  Kh7 {[%clk 0:00:25]} 40. f4 {[%clk 0:01:09]}  Rf5 {[%clk 0:00:25]} 41. Kf3 {[%clk 0:01:05]}  Ra5 {[%clk 0:00:23]} 42. h5 {[%clk 0:01:02]}  Rf5 {[%clk 0:00:23]} 43. Qh4 {[%clk 0:01:01]}  Kg7 {[%clk 0:00:21]} 44. h6+ {[%clk 0:00:58]}  Kh7 {[%clk 0:00:21]} 45. e4 {[%clk 0:00:59]}  Ra5 {[%clk 0:00:05]} 46. Qxf6 {[%clk 0:00:58]}  Ra3+ {[%clk 0:00:03]} 47. Kg4 {[%clk 0:00:58]}  Rg3+ {[%clk 0:00:02]} 48. Kxg3 {[%clk 0:00:56]}  Kg8 {[%clk 0:00:03]} 49. Qg7# {[%clk 0:00:56]} 1-0


[Site "https://www.chess.com"]

[Event "Titled Tuesday Blitz July 18 Late 2023"]
[White "Deviprasath, Sharvesh"]
[Black "Schachpanda_Youtube"]
[WhiteFideId "30938228"]
[WhiteElo "2434"]
[BlackElo "2227"]
[Result "1-0"]
[Round "4"]
[TimeControl "180+2"]
[Date "2023.07.18"]
[WhiteClock "0:01:10"]
[BlackClock "0:00:00"]
[Board "169"]

1. Nf3 {[%clk 0:02:58]}  d5 {[%clk 0:02:59]} 2. c4 {[%clk 0:02:57]}  e6 {[%clk 0:02:58]} 3. e3 {[%clk 0:02:58]}  Nf6 {[%clk 0:02:58]} 4. Nc3 {[%clk 0:02:57]}  Be7 {[%clk 0:02:57]} 5. b3 {[%clk 0:02:55]}  b6 {[%clk 0:02:56]} 6. Bb2 {[%clk 0:02:55]}  Bb7 {[%clk 0:02:55]} 7. cxd5 {[%clk 0:02:56]}  exd5 {[%clk 0:02:50]} 8. d4 {[%clk 0:02:55]}  O-O {[%clk 0:02:50]} 9. Bd3 {[%clk 0:02:56]}  Nbd7 {[%clk 0:02:50]} 10. O-O {[%clk 0:02:56]}  Ne4 {[%clk 0:02:47]} 11. Rc1 {[%clk 0:02:44]}  a6 {[%clk 0:02:39]} 12. Qc2 {[%clk 0:02:41]}  f5 {[%clk 0:02:32]} 13. Ne5 {[%clk 0:02:40]}  Bd6 {[%clk 0:02:25]} 14. Ne2 {[%clk 0:02:31]}  c5 {[%clk 0:02:13]} 15. Nxd7 {[%clk 0:02:28]}  Qxd7 {[%clk 0:02:12]} 16. dxc5 {[%clk 0:02:28]}  bxc5 {[%clk 0:02:05]} 17. Rfd1 {[%clk 0:02:12]}  Qe7 {[%clk 0:01:54]} 18. Ng3 {[%clk 0:02:05]}  h5 {[%clk 0:01:41]} 19. Nxh5 {[%clk 0:02:00]}  Bxh2+ {[%clk 0:01:18]} 20. Kxh2 {[%clk 0:01:56]}  Qh4+ {[%clk 0:01:18]} 21. Kg1 {[%clk 0:01:56]}  Qxh5 {[%clk 0:01:19]} 22. Bxe4 {[%clk 0:01:52]}  fxe4 {[%clk 0:01:16]} 23. Qxc5 {[%clk 0:01:52]}  Rac8 {[%clk 0:00:59]} 24. Qe7 {[%clk 0:01:48]}  Rf7 {[%clk 0:00:42]} 25. Rxc8+ {[%clk 0:01:47]}  Bxc8 {[%clk 0:00:42]} 26. Qe8+ {[%clk 0:01:47]}  Kh7 {[%clk 0:00:42]} 27. Qxc8 {[%clk 0:01:47]}  Qxd1+ {[%clk 0:00:41]} 28. Kh2 {[%clk 0:01:46]}  Qh5+ {[%clk 0:00:28]} 29. Kg1 {[%clk 0:01:39]}  Qd1+ {[%clk 0:00:26]} 30. Kh2 {[%clk 0:01:39]}  Qh5+ {[%clk 0:00:19]} 31. Kg3 {[%clk 0:01:29]}  Qg5+ {[%clk 0:00:12]} 32. Kh3 {[%clk 0:01:25]}  Qf5+ {[%clk 0:00:07]} 33. Qxf5+ {[%clk 0:01:24]}  Rxf5 {[%clk 0:00:08]} 34. Kg3 {[%clk 0:01:19]}  g6 {[%clk 0:00:08]} 35. b4 {[%clk 0:01:12]}  Kg8 {[%clk 0:00:07]} 36. a4 {[%clk 0:01:12]}  Kf7 {[%clk 0:00:07]} 37. b5 {[%clk 0:01:12]}  axb5 {[%clk 0:00:08]} 38. axb5 {[%clk 0:01:13]}  Ke8 {[%clk 0:00:08]} 39. b6 {[%clk 0:01:12]}  Kd7 {[%clk 0:00:08]} 40. Bd4 {[%clk 0:01:13]}  Kc6 {[%clk 0:00:08]} 41. f4 {[%clk 0:01:13]}  exf3 {[%clk 0:00:06]} 42. gxf3 {[%clk 0:01:14]}  Rf7 {[%clk 0:00:05]} 43. Kg4 {[%clk 0:01:12]}  Rf5 {[%clk 0:00:05]} 44. f4 {[%clk 0:01:12]}  Kb7 {[%clk 0:00:03]} 45. Kf3 {[%clk 0:01:05]}  Kc6 {[%clk 0:00:03]} 46. Ke2 {[%clk 0:01:06]}  Kb7 {[%clk 0:00:03]} 47. Kd3 {[%clk 0:01:06]}  Kc6 {[%clk 0:00:04]} 48. Kc3 {[%clk 0:01:07]}  Rf7 {[%clk 0:00:03]} 49. Kb4 {[%clk 0:01:08]}  Kb7 {[%clk 0:00:02]} 50. Kc5 {[%clk 0:01:07]}  Rd7 {[%clk 0:00:01]} 51. Be5 {[%clk 0:01:08]}  Rd8 {[%clk 0:00:01]} 52. Bc7 {[%clk 0:01:07]}  Rd7 {[%clk 0:00:01]} 53. Kd4 {[%clk 0:01:08]}  Rxc7 {[%clk 0:00:01]} 54. bxc7 {[%clk 0:01:09]}  Kxc7 {[%clk 0:00:02]} 55. Kxd5 {[%clk 0:01:09]}  Kd7 {[%clk 0:00:03]} 56. e4 {[%clk 0:01:10]}  Ke7 {[%clk 0:00:00]} 57. Ke5 {[%clk 0:01:10]} 1-0


[Site "https://www.chess.com"]

[Event "Titled Tuesday Blitz July 18 Late 2023"]
[White "Chabris, Christopher"]
[Black "ChessSG1"]
[WhiteFideId "2005263"]
[WhiteElo "2382"]
[BlackElo "2214"]
[Result "0-1"]
[Round "4"]
[TimeControl "180+2"]
[Date "2023.07.18"]
[WhiteClock "0:00:02"]
[BlackClock "0:01:00"]
[Board "171"]

1. e4 {[%clk 0:02:59]}  c5 {[%clk 0:03:00]} 2. Nf3 {[%clk 0:03:00]}  e6 {[%clk 0:03:00]} 3. d4 {[%clk 0:02:59]}  cxd4 {[%clk 0:03:01]} 4. Nxd4 {[%clk 0:02:59]}  a6 {[%clk 0:03:02]} 5. c4 {[%clk 0:02:59]}  Nf6 {[%clk 0:03:02]} 6. Nc3 {[%clk 0:03:00]}  Bb4 {[%clk 0:03:03]} 7. Nc2 {[%clk 0:02:59]}  Bxc3+ {[%clk 0:02:55]} 8. bxc3 {[%clk 0:02:58]}  O-O {[%clk 0:02:54]} 9. Ba3 {[%clk 0:02:57]}  Re8 {[%clk 0:02:41]} 10. e5 {[%clk 0:02:56]}  Ne4 {[%clk 0:02:40]} 11. Bd3 {[%clk 0:02:52]}  d5 {[%clk 0:02:39]} 12. exd6 {[%clk 0:02:31]}  Nxc3 {[%clk 0:02:24]} 13. Qd2 {[%clk 0:02:14]}  Na4 {[%clk 0:02:22]} 14. O-O {[%clk 0:02:08]}  Nc6 {[%clk 0:02:19]} 15. Rfe1 {[%clk 0:02:00]}  e5 {[%clk 0:02:18]} 16. Be4 {[%clk 0:01:55]}  Nb6 {[%clk 0:02:16]} 17. c5 {[%clk 0:01:46]}  Nc4 {[%clk 0:02:15]} 18. Qd3 {[%clk 0:01:39]}  Nxa3 {[%clk 0:02:04]} 19. Bxh7+ {[%clk 0:01:36]}  Kh8 {[%clk 0:02:05]} 20. Nxa3 {[%clk 0:01:34]}  g6 {[%clk 0:02:04]} 21. Bxg6 {[%clk 0:01:33]}  fxg6 {[%clk 0:02:05]} 22. Qxg6 {[%clk 0:01:32]}  Re6 {[%clk 0:01:57]} 23. Qh5+ {[%clk 0:01:31]}  Kg7 {[%clk 0:01:54]} 24. Re3 {[%clk 0:01:30]}  Rg6 {[%clk 0:01:54]} 25. Rae1 {[%clk 0:01:14]}  Bg4 {[%clk 0:01:54]} 26. Qxg6+ {[%clk 0:01:07]}  Kxg6 {[%clk 0:01:54]} 27. Rg3 {[%clk 0:01:07]}  Kh5 {[%clk 0:01:49]} 28. Nc4 {[%clk 0:00:45]}  Qf6 {[%clk 0:01:48]} 29. Ne3 {[%clk 0:00:44]}  Be6 {[%clk 0:01:46]} 30. Rf3 {[%clk 0:00:34]}  Qg7 {[%clk 0:01:31]} 31. h3 {[%clk 0:00:26]}  Nd4 {[%clk 0:01:29]} 32. Rg3 {[%clk 0:00:23]}  Qf6 {[%clk 0:01:22]} 33. Ng4 {[%clk 0:00:22]}  Bxg4 {[%clk 0:01:21]} 34. Rxg4 {[%clk 0:00:22]}  Rf8 {[%clk 0:01:19]} 35. f3 {[%clk 0:00:22]}  Rc8 {[%clk 0:01:12]} 36. d7 {[%clk 0:00:18]}  Rxc5 {[%clk 0:01:11]} 37. Ree4 {[%clk 0:00:17]}  Rd5 {[%clk 0:01:05]} 38. g3 {[%clk 0:00:16]}  Rxd7 {[%clk 0:01:00]} 39. Rh4+ {[%clk 0:00:16]}  Kg6 {[%clk 0:01:00]} 40. Reg4+ {[%clk 0:00:15]}  Kf7 {[%clk 0:01:01]} 41. Rh7+ {[%clk 0:00:14]}  Ke6 {[%clk 0:01:01]} 42. f4 {[%clk 0:00:02]}  Rxh7 {[%clk 0:01:00]} 0-1


[Site "https://www.chess.com"]

[Event "Titled Tuesday Blitz July 18 Late 2023"]
[White "Dmitriev, Sergey"]
[Black "Vifleemskaia, Svetlana"]
[WhiteFideId "14101785"]
[BlackFideId "4129490"]
[WhiteElo "1958"]
[BlackElo "2321"]
[Result "0-1"]
[Round "4"]
[TimeControl "180+2"]
[Date "2023.07.18"]
[WhiteClock "0:00:20"]
[BlackClock "0:00:35"]
[Board "179"]

1. d4 {[%clk 0:03:00]}  Nf6 {[%clk 0:02:55]} 2. Bf4 {[%clk 0:02:59]}  d5 {[%clk 0:02:55]} 3. Nf3 {[%clk 0:02:59]}  c5 {[%clk 0:02:55]} 4. e3 {[%clk 0:02:59]}  Nc6 {[%clk 0:02:55]} 5. c3 {[%clk 0:02:58]}  Qb6 {[%clk 0:02:54]} 6. Qb3 {[%clk 0:02:56]}  c4 {[%clk 0:02:54]} 7. Qxb6 {[%clk 0:02:56]}  axb6 {[%clk 0:02:54]} 8. Bc7 {[%clk 0:02:50]}  Ra6 {[%clk 0:02:25]} 9. b3 {[%clk 0:02:40]}  b5 {[%clk 0:02:23]} 10. Nbd2 {[%clk 0:02:33]}  Kd7 {[%clk 0:02:11]} 11. Bg3 {[%clk 0:02:30]}  e6 {[%clk 0:02:11]} 12. Ne5+ {[%clk 0:02:28]}  Nxe5 {[%clk 0:02:11]} 13. dxe5 {[%clk 0:02:22]}  Nh5 {[%clk 0:02:10]} 14. Bh4 {[%clk 0:02:16]}  g6 {[%clk 0:02:04]} 15. g4 {[%clk 0:02:06]}  Ng7 {[%clk 0:02:04]} 16. Bf6 {[%clk 0:02:06]}  Rg8 {[%clk 0:02:02]} 17. f4 {[%clk 0:02:00]}  Ba3 {[%clk 0:01:59]} 18. bxc4 {[%clk 0:01:52]}  bxc4 {[%clk 0:01:57]} 19. Rb1 {[%clk 0:01:46]}  Bc5 {[%clk 0:01:55]} 20. Rb2 {[%clk 0:01:16]}  Bxe3 {[%clk 0:01:51]} 21. Bg5 {[%clk 0:01:11]}  h5 {[%clk 0:01:33]} 22. h3 {[%clk 0:01:06]}  Ne8 {[%clk 0:01:25]} 23. Ke2 {[%clk 0:01:05]}  Bc5 {[%clk 0:01:20]} 24. Bg2 {[%clk 0:00:55]}  Be7 {[%clk 0:01:11]} 25. Bxe7 {[%clk 0:00:48]}  Kxe7 {[%clk 0:01:12]} 26. Bf3 {[%clk 0:00:47]}  h4 {[%clk 0:01:07]} 27. Rhb1 {[%clk 0:00:41]}  Nc7 {[%clk 0:01:04]} 28. Kd1 {[%clk 0:00:33]}  g5 {[%clk 0:00:58]} 29. f5 {[%clk 0:00:32]}  exf5 {[%clk 0:00:54]} 30. gxf5 {[%clk 0:00:32]}  Bxf5 {[%clk 0:00:53]} 31. Ra1 {[%clk 0:00:33]}  Bxh3 {[%clk 0:00:47]} 32. Rxb7 {[%clk 0:00:31]}  Kd7 {[%clk 0:00:39]} 33. Rb4 {[%clk 0:00:29]}  g4 {[%clk 0:00:36]} 34. Bh1 {[%clk 0:00:29]}  g3 {[%clk 0:00:35]} 35. Nf3 {[%clk 0:00:25]}  g2 {[%clk 0:00:35]} 36. Bxg2 {[%clk 0:00:24]}  Rxg2 {[%clk 0:00:35]} 37. Nd4 {[%clk 0:00:20]}  Rg1+ {[%clk 0:00:35]} 0-1


[Site "https://www.chess.com"]

[Event "Titled Tuesday Blitz July 18 Late 2023"]
[White "Arias Igual, Alejandro"]
[Black "Gyulamiryan-koryun"]
[WhiteFideId "2254905"]
[WhiteElo "2313"]
[BlackElo "1903"]
[Result "1-0"]
[Round "4"]
[TimeControl "180+2"]
[Date "2023.07.18"]
[WhiteClock "0:00:09"]
[BlackClock "0:00:31"]
[Board "181"]

1. e4 {[%clk 0:02:53]}  e5 {[%clk 0:02:59]} 2. Nf3 {[%clk 0:02:53]}  Nc6 {[%clk 0:02:59]} 3. Bb5 {[%clk 0:02:53]}  a6 {[%clk 0:02:59]} 4. Bxc6 {[%clk 0:02:52]}  dxc6 {[%clk 0:02:58]} 5. Nc3 {[%clk 0:02:52]}  f6 {[%clk 0:02:57]} 6. d4 {[%clk 0:02:50]}  exd4 {[%clk 0:02:49]} 7. Nxd4 {[%clk 0:02:51]}  g6 {[%clk 0:02:43]} 8. O-O {[%clk 0:02:40]}  Bg7 {[%clk 0:02:34]} 9. Be3 {[%clk 0:02:35]}  Ne7 {[%clk 0:02:29]} 10. Qe2 {[%clk 0:02:30]}  O-O {[%clk 0:02:28]} 11. Qc4+ {[%clk 0:02:27]}  Kh8 {[%clk 0:02:24]} 12. Ne6 {[%clk 0:02:15]}  Bxe6 {[%clk 0:02:24]} 13. Qxe6 {[%clk 0:02:16]}  Qd6 {[%clk 0:02:23]} 14. Qb3 {[%clk 0:02:08]}  b5 {[%clk 0:02:20]} 15. Rad1 {[%clk 0:01:54]}  Qe5 {[%clk 0:02:19]} 16. Rd7 {[%clk 0:01:19]}  Ng8 {[%clk 0:01:54]} 17. f4 {[%clk 0:01:07]}  Qe8 {[%clk 0:01:33]} 18. Rxc7 {[%clk 0:01:04]}  Rc8 {[%clk 0:01:29]} 19. Rxc8 {[%clk 0:00:55]}  Qxc8 {[%clk 0:01:28]} 20. Rd1 {[%clk 0:00:55]}  Rd8 {[%clk 0:01:23]} 21. Rd3 {[%clk 0:00:40]}  a5 {[%clk 0:01:21]} 22. Qf7 {[%clk 0:00:31]}  Rxd3 {[%clk 0:01:18]} 23. cxd3 {[%clk 0:00:31]}  b4 {[%clk 0:01:07]} 24. Na4 {[%clk 0:00:28]}  Qg4 {[%clk 0:01:04]} 25. Kf2 {[%clk 0:00:19]}  Qd1 {[%clk 0:00:59]} 26. Qb3 {[%clk 0:00:19]}  Qb1 {[%clk 0:00:51]} 27. Nc5 {[%clk 0:00:16]}  f5 {[%clk 0:00:47]} 28. e5 {[%clk 0:00:15]}  Ne7 {[%clk 0:00:45]} 29. Ne6 {[%clk 0:00:14]}  Nd5 {[%clk 0:00:43]} 30. Nxg7 {[%clk 0:00:14]}  Kxg7 {[%clk 0:00:43]} 31. e6 {[%clk 0:00:13]}  Kf6 {[%clk 0:00:42]} 32. Qc4 {[%clk 0:00:10]}  Qxb2+ {[%clk 0:00:40]} 33. Kf3 {[%clk 0:00:10]}  Nxe3 {[%clk 0:00:37]} 34. Kxe3 {[%clk 0:00:10]}  Qe5+ {[%clk 0:00:36]} 35. fxe5+ {[%clk 0:00:10]}  Kxe5 {[%clk 0:00:34]} 36. e7 {[%clk 0:00:09]}  Kf6 {[%clk 0:00:32]} 37. e8=Q {[%clk 0:00:09]}  Kg5 {[%clk 0:00:32]} 38. Qe7+ {[%clk 0:00:09]}  Kh6 {[%clk 0:00:31]} 39. Qch4# {[%clk 0:00:09]} 1-0


[Site "https://www.chess.com"]

[Event "Titled Tuesday Blitz July 18 Late 2023"]
[White "Martinez Alcantara, Jose Eduardo"]
[Black "Hakobyan, Aram"]
[WhiteFideId "3805662"]
[BlackFideId "13306677"]
[WhiteElo "3054"]
[BlackElo "2969"]
[Result "1-0"]
[Round "5"]
[TimeControl "180+2"]
[Date "2023.07.18"]
[WhiteClock "0:00:07"]
[BlackClock "0:00:00"]
[Board "3"]

1. e4 {[%clk 0:03:00]}  c5 {[%clk 0:03:00]} 2. Nf3 {[%clk 0:03:00]}  d6 {[%clk 0:03:01]} 3. c3 {[%clk 0:03:00]}  Nf6 {[%clk 0:02:58]} 4. h3 {[%clk 0:03:00]}  Nc6 {[%clk 0:02:58]} 5. Bd3 {[%clk 0:03:01]}  g5 {[%clk 0:02:58]} 6. Bc2 {[%clk 0:03:01]}  g4 {[%clk 0:02:59]} 7. hxg4 {[%clk 0:03:01]}  Bxg4 {[%clk 0:02:59]} 8. d3 {[%clk 0:03:02]}  d5 {[%clk 0:02:58]} 9. Qe2 {[%clk 0:02:54]}  dxe4 {[%clk 0:02:59]} 10. dxe4 {[%clk 0:02:55]}  h5 {[%clk 0:02:59]} 11. Bg5 {[%clk 0:02:46]}  Qb6 {[%clk 0:02:30]} 12. Bb3 {[%clk 0:02:35]}  O-O-O {[%clk 0:01:18]} 13. Nbd2 {[%clk 0:02:33]}  Ne5 {[%clk 0:01:17]} 14. Nc4 {[%clk 0:02:29]}  Nxc4 {[%clk 0:01:12]} 15. Bxc4 {[%clk 0:02:30]}  Rg8 {[%clk 0:00:25]} 16. Bf4 {[%clk 0:01:54]}  e6 {[%clk 0:00:20]} 17. Bg3 {[%clk 0:01:44]}  Bh6 {[%clk 0:00:14]} 18. Bd3 {[%clk 0:01:13]}  c4 {[%clk 0:00:14]} 19. Bxc4 {[%clk 0:01:13]}  Rd2 {[%clk 0:00:13]} 20. Qxd2 {[%clk 0:01:06]}  Bxd2+ {[%clk 0:00:13]} 21. Nxd2 {[%clk 0:01:07]}  Qxb2 {[%clk 0:00:12]} 22. Rb1 {[%clk 0:01:06]}  Qxc3 {[%clk 0:00:10]} 23. O-O {[%clk 0:00:44]}  Qxd2 {[%clk 0:00:09]} 24. Rfc1 {[%clk 0:00:43]}  Kd8 {[%clk 0:00:10]} 25. Bb3 {[%clk 0:00:37]}  Nd7 {[%clk 0:00:07]} 26. Ba4 {[%clk 0:00:34]}  f6 {[%clk 0:00:03]} 27. Rf1 {[%clk 0:00:26]}  e5 {[%clk 0:00:03]} 28. Rxb7 {[%clk 0:00:25]}  Be6 {[%clk 0:00:03]} 29. Bh4 {[%clk 0:00:20]}  Rg7 {[%clk 0:00:01]} 30. Bxf6+ {[%clk 0:00:14]}  Kc8 {[%clk 0:00:01]} 31. Bxd7+ {[%clk 0:00:08]}  Rxd7 {[%clk 0:00:01]} 32. Rbb1 {[%clk 0:00:07]}  Rc7 {[%clk 0:00:01]} 33. Bxe5 {[%clk 0:00:07]}  Rc4 {[%clk 0:00:00]} 34. Rfd1 {[%clk 0:00:07]} 1-0


[Site "https://www.chess.com"]

[Event "Titled Tuesday Blitz July 18 Late 2023"]
[White "Van Foreest, Jorden"]
[Black "Bortnyk, Olexandr"]
[WhiteFideId "1039784"]
[BlackFideId "14120828"]
[WhiteElo "2955"]
[BlackElo "3029"]
[Result "0-1"]
[Round "5"]
[TimeControl "180+2"]
[Date "2023.07.18"]
[WhiteClock "0:00:08"]
[BlackClock "0:00:33"]
[Board "4"]

1. d4 {[%clk 0:02:59]}  d6 {[%clk 0:02:58]} 2. e4 {[%clk 0:02:58]}  Nf6 {[%clk 0:02:58]} 3. Nc3 {[%clk 0:02:58]}  e5 {[%clk 0:02:59]} 4. Nf3 {[%clk 0:02:54]}  Nbd7 {[%clk 0:02:59]} 5. Bc4 {[%clk 0:02:54]}  Be7 {[%clk 0:02:59]} 6. Ng5 {[%clk 0:02:44]}  O-O {[%clk 0:02:56]} 7. Bxf7+ {[%clk 0:02:44]}  Rxf7 {[%clk 0:02:57]} 8. Ne6 {[%clk 0:02:45]}  Qe8 {[%clk 0:02:57]} 9. Nxc7 {[%clk 0:02:45]}  Qd8 {[%clk 0:02:58]} 10. Nxa8 {[%clk 0:02:46]}  b5 {[%clk 0:02:58]} 11. dxe5 {[%clk 0:02:12]}  dxe5 {[%clk 0:02:57]} 12. Nd5 {[%clk 0:02:03]}  Bd6 {[%clk 0:02:20]} 13. Bg5 {[%clk 0:01:42]}  Bb7 {[%clk 0:02:16]} 14. Nxf6+ {[%clk 0:01:23]}  Nxf6 {[%clk 0:02:17]} 15. Qd3 {[%clk 0:01:23]}  Bb4+ {[%clk 0:02:11]} 16. Bd2 {[%clk 0:01:00]}  Bxd2+ {[%clk 0:02:02]} 17. Qxd2 {[%clk 0:01:00]}  Qxd2+ {[%clk 0:01:55]} 18. Kxd2 {[%clk 0:01:01]}  Nxe4+ {[%clk 0:01:56]} 19. Ke3 {[%clk 0:01:01]}  Nxf2 {[%clk 0:01:55]} 20. Rhf1 {[%clk 0:00:52]}  Ng4+ {[%clk 0:01:54]} 21. Ke2 {[%clk 0:00:53]}  Bxa8 {[%clk 0:01:45]} 22. Rxf7 {[%clk 0:00:36]}  Kxf7 {[%clk 0:01:45]} 23. a4 {[%clk 0:00:36]}  b4 {[%clk 0:01:41]} 24. Rd1 {[%clk 0:00:34]}  Nf6 {[%clk 0:01:37]} 25. Rd6 {[%clk 0:00:31]}  Bb7 {[%clk 0:01:31]} 26. Rd8 {[%clk 0:00:25]}  Bxg2 {[%clk 0:01:17]} 27. Rb8 {[%clk 0:00:26]}  g5 {[%clk 0:01:08]} 28. a5 {[%clk 0:00:24]}  h5 {[%clk 0:01:04]} 29. a6 {[%clk 0:00:24]}  Ke6 {[%clk 0:00:59]} 30. Rxb4 {[%clk 0:00:23]}  h4 {[%clk 0:00:58]} 31. Rb8 {[%clk 0:00:20]}  g4 {[%clk 0:00:55]} 32. Kf2 {[%clk 0:00:21]}  Bc6 {[%clk 0:00:46]} 33. Rh8 {[%clk 0:00:21]}  h3 {[%clk 0:00:40]} 34. c4 {[%clk 0:00:17]}  Ne4+ {[%clk 0:00:39]} 35. Ke3 {[%clk 0:00:16]}  Nd6 {[%clk 0:00:35]} 36. b3 {[%clk 0:00:16]}  Nf5+ {[%clk 0:00:35]} 37. Kf2 {[%clk 0:00:16]}  e4 {[%clk 0:00:35]} 38. Rh7 {[%clk 0:00:14]}  e3+ {[%clk 0:00:34]} 39. Ke2 {[%clk 0:00:15]}  Bf3+ {[%clk 0:00:34]} 40. Kd3 {[%clk 0:00:15]}  e2 {[%clk 0:00:34]} 41. Kd2 {[%clk 0:00:08]}  Nd4 {[%clk 0:00:33]} 0-1


[Site "https://www.chess.com"]

[Event "Titled Tuesday Blitz July 18 Late 2023"]
[White "Andreikin, Dmitry"]
[Black "Terry, Renato"]
[WhiteFideId "4158814"]
[BlackFideId "3803457"]
[WhiteElo "3003"]
[BlackElo "2948"]
[Result "0-1"]
[Round "5"]
[TimeControl "180+2"]
[Date "2023.07.18"]
[WhiteClock "0:00:58"]
[BlackClock "0:01:04"]
[Board "6"]

1. d4 {[%clk 0:03:00]}  e6 {[%clk 0:03:00]} 2. Nf3 {[%clk 0:02:56]}  Nf6 {[%clk 0:03:00]} 3. c4 {[%clk 0:02:56]}  Bb4+ {[%clk 0:03:00]} 4. Bd2 {[%clk 0:02:56]}  Qe7 {[%clk 0:02:57]} 5. g3 {[%clk 0:02:53]}  Nc6 {[%clk 0:02:57]} 6. Bg2 {[%clk 0:02:53]}  Bxd2+ {[%clk 0:02:57]} 7. Nbxd2 {[%clk 0:02:52]}  d6 {[%clk 0:02:57]} 8. Nf1 {[%clk 0:02:52]}  O-O {[%clk 0:02:58]} 9. Ne3 {[%clk 0:02:52]}  Rb8 {[%clk 0:02:48]} 10. Rc1 {[%clk 0:02:47]}  b6 {[%clk 0:02:48]} 11. O-O {[%clk 0:02:34]}  Bb7 {[%clk 0:02:45]} 12. d5 {[%clk 0:02:34]}  Ne5 {[%clk 0:02:41]} 13. Nd4 {[%clk 0:02:31]}  a5 {[%clk 0:02:29]} 14. Re1 {[%clk 0:02:27]}  Ned7 {[%clk 0:02:26]} 15. Nf1 {[%clk 0:02:00]}  e5 {[%clk 0:02:17]} 16. Nf5 {[%clk 0:01:59]}  Qd8 {[%clk 0:02:17]} 17. e4 {[%clk 0:01:57]}  g6 {[%clk 0:02:17]} 18. Nh4 {[%clk 0:01:53]}  Nc5 {[%clk 0:02:11]} 19. Qd2 {[%clk 0:01:53]}  Kg7 {[%clk 0:02:09]} 20. Ne3 {[%clk 0:01:47]}  Bc8 {[%clk 0:02:01]} 21. Nd1 {[%clk 0:01:44]}  Nh5 {[%clk 0:02:00]} 22. Bf3 {[%clk 0:01:42]}  Nf4 {[%clk 0:01:56]} 23. Ne3 {[%clk 0:01:40]}  Qf6 {[%clk 0:01:46]} 24. Rc3 {[%clk 0:01:36]}  Nh3+ {[%clk 0:01:43]} 25. Kh1 {[%clk 0:01:17]}  Nxe4 {[%clk 0:01:35]} 26. Bxe4 {[%clk 0:01:14]}  Nxf2+ {[%clk 0:01:35]} 27. Kg1 {[%clk 0:01:13]}  Nxe4 {[%clk 0:01:35]} 28. Qc2 {[%clk 0:01:13]}  Nxc3 {[%clk 0:01:33]} 29. Qxc3 {[%clk 0:01:14]}  Qg5 {[%clk 0:01:27]} 30. Nf3 {[%clk 0:01:13]}  Qh5 {[%clk 0:01:28]} 31. Rf1 {[%clk 0:01:13]}  Bh3 {[%clk 0:01:26]} 32. Rf2 {[%clk 0:01:14]}  Rbe8 {[%clk 0:01:22]} 33. Nd2 {[%clk 0:01:11]}  f5 {[%clk 0:01:20]} 34. c5 {[%clk 0:01:10]}  bxc5 {[%clk 0:01:13]} 35. Qxa5 {[%clk 0:01:10]}  Re7 {[%clk 0:01:12]} 36. Qc3 {[%clk 0:01:10]}  Kg8 {[%clk 0:01:13]} 37. Nf3 {[%clk 0:01:07]}  f4 {[%clk 0:01:09]} 38. Nc4 {[%clk 0:00:58]}  e4 {[%clk 0:01:04]} 0-1


[Site "https://www.chess.com"]